Cogmind - Beta 15 @@@ ROGUE MODE // 2025.05.18 @ 12:29:51 Player: Eggpie Result: Destroyed by L-31 Rogue with Katana Performance ------------- Evolutions (1) 500 Regions Visited (4) 800 Robots Destroyed (26) 130 Value Destroyed (471) 471 Prototype IDs (2) 40 Alien Tech Used (0) 0 Bonus (110) 110 TOTAL SCORE: 2051 Bonus ------- Follower Combat Kills 245 Friendly Fire -135 Cogmind --------- Core Integrity 0/400 Matter 224/300 Energy 160/160 System Corruption 0% Temperature Warm (175) Movement Rolling (115) Ox1 Location -9/Storage Parts ------- > --- POWER (1) -------- Light Nuclear Core > --- PROPULSION (2) --- Compact Wheel > --- UTILITY (2) ------ Small Storage Unit Targeting Computer > --- WEAPON (4) ------- Light Assault Rifle Heavy Assault Rifle Heavy Assault Rifle > --- INVENTORY (8) ---- Large Matter Pod (92) Salvage Targeting Computer Salvage Targeting Computer Targeting Computer Shield Generator Tractor Beam Field Recycling Unit (0) Field Recycling Unit (0) Peak State ------------ > --- POWER ------------ Light Nuclear Core > --- PROPULSION ------- Compact Wheel > --- UTILITY ---------- Small Storage Unit Targeting Computer > --- WEAPON ----------- Light Assault Rifle Heavy Assault Rifle Heavy Assault Rifle Heavy Assault Rifle > --- INVENTORY -------- Large Matter Pod Salvage Targeting Computer Salvage Targeting Computer Targeting Computer Shield Generator Tractor Beam Field Recycling Unit Field Recycling Unit [Rating: 14] Favorites ----------- Power Light Ion Engine Engine Light Ion Engine Power Core Light Nuclear Core Propulsion Wheel Wheel Wheel Utility Small Storage Unit Storage Small Storage Unit Processor Targeting Computer Weapon Heavy Assault Rifle Ballistic Gun Heavy Assault Rifle Build | -11 -10 -10 -9 -9 ------- Run | Yrd Mat Min Mat Sto Slots Evolved 2 | . . . 2 . Power . | . . . . . Propulsion . | . . . . . Utility . | . . . . . Weapon 2 | . . . 2 . Parts Attached 19 | 6 1 1 9 2 Power 4 | 1 . . 2 1 Engine 3 | 1 . . 2 . Core 1 | . . . . 1 Reactor . | . . . . . Propulsion 6 | 2 . 1 2 1 Treads . | . . . . . Leg . | . . . . . Wheel 6 | 2 . 1 2 1 Hover . | . . . . . Flight . | . . . . . Utility 2 | 1 1 . . . Device . | . . . . . Storage 1 | 1 . . . . Processor 1 | . 1 . . . Hackware . | . . . . . Protection . | . . . . . Artifact . | . . . . . Weapon 7 | 2 . . 5 . Energy Gun . | . . . . . Energy Cannon . | . . . . . Ballistic Gun 7 | 2 . . 5 . Ballistic Cannon . | . . . . . Launcher . | . . . . . Special Weapon . | . . . . . Impact Weapon . | . . . . . Slashing Weapon . | . . . . . Piercing Weapon . | . . . . . Special Melee Weapon . | . . . . . Unidentified Prototypes . | . . . . . Parts Lost 9 | . . . 8 1 Power 1 | . . . 1 . Propulsion 4 | . . . 4 . Utility . | . . . . . Weapon 4 | . . . 3 1 Highest Loss Streak 5 | . . . 5 1 To Critical Strikes . | . . . . . Average Backups 7 | 1 4 8 7 8 Power . | . . . . . Propulsion . | . . . . . Utility 6 | . 3 7 7 8 Weapon . | 1 1 1 . . Tool/Special . | . . . . . Unused Backups 10 | . . . 1 9 Power . | . . . . . Propulsion . | . . . . . Utility 10 | . . . 1 9 Weapon . | . . . . . Tool/Special . | . . . . . Average Slot Usage (%) 82 | . 98 100 75 79 Engine 11 | . 14 14 10 8 Wheel 13 | . 28 28 8 2 Storage 11 | . 14 14 11 11 Processor 11 | . 12 14 11 11 Ballistic Gun 33 | . 28 28 34 43 Peak Build Rating 14 | 6 8 8 11 14 Average Rating 9 | 3 7 7 9 11 On Entrance 6 | . 6 8 8 11 Naked Turns . | . . . . . Heaviest Build 20 | 14 14 14 18 20 Greatest Support 26 | 26 26 26 26 16 Greatest Overweight (x) 5 | . . . 5 5 Average Overweight (x) 1 | . . . 1 3 Largest Inventory Capacity 8 | 8 8 8 8 8 Average Capacity 7 | 6 8 8 8 8 Most Carried 8 | 5 8 8 8 8 Average Carried 7 | 1 4 8 7 7 Final Capacity 8 | 8 8 8 8 8 Final Carried 8 | 1 8 8 8 8 Class Distribution -------------------- 53% | Gunner 41% | Mutant 4% | Scavenger-Gunner Dominant Class ---------------- Mutant | -10/Materials Mutant | -10/Mines Gunner | -9/Materials Gunner | -9/Storage Resources | -11 -10 -10 -9 -9 ----------- Run | Yrd Mat Min Mat Sto Matter Collected 890 | 115 . 63 410 302 Remotely . | . . . . . Salvage Created 735 | . 66 63 370 236 Parts 56 | . 10 7 26 13 Haulers Intercepted . | . . . . . Recyclers Shooed 2 | . . . . 2 Parts Field Recycled . | . . . . . Retrieved Matter . | . . . . . Parts Self-Destructed . | . . . . . Prevented . | . . . . . Kills | -11 -10 -10 -9 -9 ------- Run | Yrd Mat Min Mat Sto Combat Hostiles Destroyed 20 | . 3 3 10 4 Guns 20 | . 3 3 10 4 Classes Destroyed 8 | . 2 1 3 2 Worker 2 | . . 1 1 . Recycler 1 | . . . 1 . Watcher 2 | . 1 . 1 . Swarmer 12 | . 3 3 6 . Grunt 3 | . . . 1 2 Brawler 1 | . . . . 1 Protector 1 | . . . . 1 Sentry 3 | . . . 3 . Thug 1 | . . . . 1 Best Kill Streak 4 | . 4 3 3 3 Combat Bots Only 3 | . 3 3 2 3 Max Kills in Single Turn 1 | . 1 1 1 1 Gunslinging . | . . . . . Exploded . | . . . . . Melee . | . . . . . Uniques/NPCs Destroyed . | . . . . . Combat | -11 -10 -10 -9 -9 -------- Run | Yrd Mat Min Mat Sto Hostile Shots Fired 185 | . 16 6 136 27 Missed 49 | . 5 1 39 4 Hits 136 | . 11 5 97 23 Melee 2 | . . . . 2 Projectile 134 | . 11 5 97 21 Critical Strikes 4 | . . . 3 1 Damage Taken 1410 | . 83 41 958 328 Core 445 | . 7 13 334 91 Absorbed by Shields . | . . . . . Core Remaining (%) 96 | 100 . 92 . . Volleys Fired 71 | . 7 5 43 16 Largest 4 | . 2 2 3 4 Hottest 89 | . 40 40 60 89 Shots Fired 195 | . 14 10 110 61 Gun 195 | . 14 10 110 61 Cannon . | . . . . . Launcher . | . . . . . Special . | . . . . . Kinetic 195 | . 14 10 110 61 Thermal . | . . . . . Explosive . | . . . . . Electromagnetic . | . . . . . Robot Hit Streak 9 | . 3 4 9 9 Robot Miss Streak 6 | . 3 1 6 4 Penetration Max . | . . . . . Secondary Targets 7 | . . . 5 2 Max Gunslinging Chain 1 | . . . 1 1 Shots Hit Robots 117 | . 6 7 70 34 Core Hits 46 | . 4 4 22 16 Critical Kills . | . . . . . Critical Parts Destroyed 1 | . . . 1 . Critical Strikes 2 | . . . 2 . Destroy 2 | . . . 2 . Melee Attacks . | . . . . . Impact . | . . . . . Slashing . | . . . . . Piercing . | . . . . . Sneak Attacks . | . . . . . Combat Hostiles . | . . . . . Follow-up Attacks . | . . . . . Damage Inflicted 1671 | . 94 96 930 551 Guns 1662 | . 94 87 930 551 Cannons . | . . . . . Explosions . | . . . . . Melee . | . . . . . Ramming 9 | . . 9 . . Kinetic 1662 | . 94 87 930 551 Thermal . | . . . . . Explosive . | . . . . . Electromagnetic . | . . . . . Impact . | . . . . . Slashing . | . . . . . Piercing . | . . . . . Highest Corruption 1 | . 1 1 . . Average Corruption 1 | . 1 1 . . Corruption Purged . | . . . . . Corruption Blocked . | . . . . . Overload Shots . | . . . . . Overflow Damage . | . . . . . Projectiles . | . . . . . Explosions . | . . . . . Melee . | . . . . . Knockbacks . | . . . . . Impact . | . . . . . Kinetic . | . . . . . Secondary . | . . . . . Self-Inflicted Damage 4 | . . 4 . . Shots . | . . . . . Rammed 1 | . . 1 . . Targets Rammed 1 | . . 1 . . Kicked . | . . . . . Crushed . | . . . . . Highest Temperature 169 | . . . 60 169 Average Temperature 41 | . . . 19 54 Received Heat Transfer 402 | . . . 267 135 Siege Activations . | . . . . . Martial Activations . | . . . . . Shielding Activations . | . . . . . Robots Disrupted . | . . . . . Combat Hostiles . | . . . . . Robots Corrupted . | . . . . . Combat Hostiles . | . . . . . Parts Fried . | . . . . . Impact Corruptions . | . . . . . Robots Melted . | . . . . . Combat Hostiles . | . . . . . Parts Melted 1 | . . . 1 . Heat Transferred . | . . . . . Parts Sabotaged . | . . . . . Parts Stolen . | . . . . . Parts Stripped . | . . . . . Power Chain Reactions . | . . . . . Alert | -11 -10 -10 -9 -9 ------- Run | Yrd Mat Min Mat Sto Maximum Alert Level 1 | . . . 1 . Low Security (%) 89 | 100 100 100 80 100 Level 1 10 | . . . 19 . Level 2 . | . . . . . Level 3 . | . . . . . Level 4 . | . . . . . Level 5 . | . . . . . High Security . | . . . . . Max Security . | . . . . . Peak Influence 244 | . 70 68 244 169 Initial 28 | . . 15 26 28 Average 92 | . 20 10 141 73 Influence Increases 800 | . 82 83 436 199 Destroy 0b10 Robot/C 560 | . 60 60 300 140 Destroy 0b10 Robot/NC 30 | . 5 5 15 5 Destroy Leader 134 | . 12 10 82 30 Allied During Kill 50 | . . 8 18 24 Successful Hack 9 | . 5 . 4 . Destroy Structure 2 | . . . 2 . Lose Combat Pursuer 15 | . . . 15 . Influence Decreases 681 | . 42 55 436 148 Entered New Map 107 | . . 25 42 40 Time Decay 444 | . 42 30 294 78 Lost Part 90 | . . . 80 10 Lost Ally 40 | . . . 20 20 Squads Dispatched 5 | . . . 1 4 Investigation 2 | . . . 1 1 Extermination . | . . . . . Reinforcement . | . . . . . Assault 2 | . . . . 2 Garrison 1 | . . . . 1 Intercept . | . . . . . Searches Triggered . | . . . . . Construction Impeded . | . . . . . Haulers Reinforced . | . . . . . Active Scanning Responses . | . . . . . Cargo Convoy Interrupts . | . . . . . Stealth | -11 -10 -10 -9 -9 --------- Run | Yrd Mat Min Mat Sto Distress Signals 2 | . 1 . 1 . Communications Jammed . | . . . . . Distress Signals . | . . . . . Times Spotted 35 | . 4 3 15 13 Peak Tracking Total 7 | . 3 3 5 7 Tactical Retreats 1 | . . . 1 . Traps | -11 -10 -10 -9 -9 ------- Run | Yrd Mat Min Mat Sto Traps Triggered 1 | . . . . 1 Indirectly . | . . . . . Trap Hack Attempts . | . . . . . Triggered . | . . . . . Disarmed . | . . . . . Reprogrammed . | . . . . . Reused . | . . . . . Traps Extracted . | . . . . . Installed . | . . . . . Triggered . | . . . . . Machines | -11 -10 -10 -9 -9 ---------- Run | Yrd Mat Min Mat Sto Machines Disabled . | . . . . . Max in Single Turn . | . . . . . Machines Repaired . | . . . . . Machines Dismantled . | . . . . . Machines Sabotaged . | . . . . . Overloaded Fab Kills . | . . . . . Hacking | -11 -10 -10 -9 -9 --------- Run | Yrd Mat Min Mat Sto Machines Accessed 7 | . 3 . 4 . Terminals 6 | . 3 . 3 . Fabricators . | . . . . . Repair Stations . | . . . . . Recycling Units 1 | . . . 1 . Scanalyzers . | . . . . . Garrison Access . | . . . . . Total Hacks 22 | . 11 . 11 . Successful 13 | . 5 . 8 . Failed 9 | . 6 . 3 . Catastrophic 2 | . 2 . . . Database Lockouts . | . . . . . Manual . | . . . . . Terminals 19 | . 11 . 8 . Fabricators . | . . . . . Repair Stations . | . . . . . Recycling Units 3 | . . . 3 . Scanalyzers . | . . . . . Garrison Access . | . . . . . Terminal Hacks 10 | . 5 . 5 . Record 2 | . . . 2 . Prototype ID Bank 1 | . 1 . . . Emergency Access Points 1 | . . . 1 . Alert Level 2 | . . . 2 . Locate Traps 2 | . 2 . . . Zone Layout 2 | . 2 . . . Fabricator Hacks . | . . . . . Repair Station Hacks . | . . . . . Recycling Unit Hacks 3 | . . . 3 . Process 1 | . . . 1 . Report Inventory 1 | . . . 1 . Retrieve Matter 1 | . . . 1 . Scanalyzer . | . . . . . Garrison Access Hacks . | . . . . . Unauthorized Hacks . | . . . . . Terminals . | . . . . . Fabricators . | . . . . . Repair Stations . | . . . . . Recycling Units . | . . . . . Scanalyzers . | . . . . . Garrison Access . | . . . . . Data Cores Recovered . | . . . . . Used . | . . . . . Hacking Detections 5 | . 3 . 2 . Full Trace Events 2 | . 1 . 1 . Feedback Events 1 | . 1 . . . Corruption 1 | . 1 . . . Feedback Blocked . | . . . . . Robot Schematics Acquired . | . . . . . Robots Built . | . . . . . Authchips . | . . . . . Time . | . . . . . Total Robot Build Rating . | . . . . . Part Schematics Acquired . | . . . . . Parts Built . | . . . . . Authchips . | . . . . . Time . | . . . . . Total Part Build Rating . | . . . . . Parts Repaired . | . . . . . Time . | . . . . . Parts Recycled . | . . . . . Recycled Matter 22 | . . . 22 . Retrieved Matter 22 | . . . 22 . Retrieved Components . | . . . . . Parts Scanalyzed . | . . . . . Part Schematics Acquired . | . . . . . Parts Damaged . | . . . . . Bothacking | -11 -10 -10 -9 -9 ------------ Run | Yrd Mat Min Mat Sto Used RIF Installer . | . . . . . Robots Hacked . | . . . . . Non-combat . | . . . . . Combat . | . . . . . Robot Hacks Applied . | . . . . . Relay Couplers Released . | . . . . . Fabnet Peak Effective % . | . . . . . Robots Rewired . | . . . . . Allies Hacked . | . . . . . Hacks Repelled . | . . . . . Allies | -11 -10 -10 -9 -9 -------- Run | Yrd Mat Min Mat Sto Total Allies 4 | . . 2 . 2 Largest Group 2 | . . 2 1 2 Highest-Rated Group 62 | . . 46 31 62 Highest-Rated Ally 31 | . . 31 31 31 Total Orders . | . . . . . Ally Attacks 54 | . . . 23 31 Total Damage 732 | . . . 231 501 Kills 9 | . . . 5 4 Allies Corrupted . | . . . . . Allies Melted . | . . . . . Intel | -11 -10 -10 -9 -9 ------- Run | Yrd Mat Min Mat Sto Active Infowar (turns) . | . . . . . Robot Analysis Total . | . . . . . Derelict Logs Recovered . | . . . . . Drone Launches . | . . . . . Drone Recoveries . | . . . . . Exploration | -11 -10 -10 -9 -9 ------------- Run | Yrd Mat Min Mat Sto Turns Passed 1204 | 40 173 152 659 180 Spaces Moved 712 | 36 159 140 325 52 Core 160 | 13 . . 112 35 Treads . | . . . . . Legs . | . . . . . Wheels 552 | 23 159 140 213 17 Hover . | . . . . . Flight . | . . . . . Fastest Speed 50 | 50 90 80 80 115 Average Speed 128 | 75 90 80 156 239 Slowest Speed 300 | 90 90 90 300 300 Overloaded Moves . | . . . . . Propulsion Burnouts . | . . . . . Robots Hopped . | . . . . . Potential Cave-ins . | . . . . . Cave-ins Triggered . | . . . . . Exploration Rate (%) 25 | 3 45 37 29 15 Regions Visited 4 Branch Regions 2 Pre-discovered Areas . | . . . . . Known Exits Taken . | . . . . . Unknown Exits Taken 4 | 1 1 1 1 . Scrap Searched . | . . . . . Spaces Dug . | . . . . . Terrain Destroyed . | . . . . . Melee . | . . . . . Projectile . | . . . . . AOE . | . . . . . Terrain Rammed . | . . . . . Walls Destroyed . | . . . . . Machines Disabled . | . . . . . Actions | -11 -10 -10 -9 -9 --------- Run | Yrd Mat Min Mat Sto Total 848 | 48 174 169 384 73 Wait 22 | . . 22 . . Move 708 | 35 158 139 324 52 Hop . | . . . . . Pick Up 22 | 7 8 . 6 1 Fast Attach 6 | . . 1 4 1 Attach 11 | 6 1 . 4 . Detach . | . . . . . Swap 2 | . . . 1 1 Drop 5 | . . 1 2 2 Fire 71 | . 7 5 43 16 Melee . | . . . . . Ram 1 | . . 1 . . Kick . | . . . . . Crush . | . . . . . Escape Stasis . | . . . . . Rewire . | . . . . . Trap . | . . . . . Miscellaneous . | . . . . . Route ------- -11/Scrapyard -10/Materials (discovered 2 exits: *Mat / [*Min]) -10/Mines -9/Materials (discovered 2 exits: [*Sto x2]) -9/Storage History --------- Turn | Location | Event 18 | -11/Scrapyard | Discovered new exit (range 16) 41 | -11/Scrapyard | Entered Materials 186 | -10/Materials | Discovered new exit (range 11) 207 | -10/Materials | Discovered new exit (range 8) 214 | -10/Materials | Entered Mines 300 | -10/Mines | Build established: Mutant 357 | -10/Mines | Discovered new exit (range 8) 366 | -10/Mines | Entered Materials 366 | -9/Materials | Accompanied by 1 ally 366 | -9/Materials | Evolved 2 slots: Weapon x2 371 | -9/Materials | Led the pair of lost Derelicts to an unsafe place 390 | -9/Materials | Discovered new exit (range 14) 637 | -9/Materials | Core integrity fell below 50% 672 | -9/Materials | Lost 5 parts (2n3w) 708 | -9/Materials | Core integrity fell below 20% 1010 | -9/Materials | Discovered new exit (range 6) 1025 | -9/Materials | Entered Storage 1037 | -9/Storage | Met a pair of Derelict thieves 1047 | -9/Storage | Build established: Gunner 1174 | -9/Storage | Garrison activated, responded to threat 1205 | -9/Storage | Destroyed by L-31 Rogue with Katana Last Messages --------------- 01166_ Acquired 56 matter. 01167_ Acquired 46 matter. 01169_ K-01 Serf collects debris. 01171_ Acquired 93 matter. 01172_ K-01 Serf collects debris. 01174_ R-06 Scavenger calls for garrison support. 01174_ ALERT: Activating Garrison Access S001. 01176_ K-01 Serf collects debris. 01177_ L-31 Rogue unfolds itself. 01177_ G-34 Mercenary unfolds itself. 01179_ K-01 Serf collects debris. 01186_ L-31 Rogue suffers critical hit (Burn). 01187_ 6Q-SGE(g) destroyed. 01188_ MY-6HM(g) Carbon-fiber Leg severed. 01191_ MY-6HM(g) destroyed. 01194_ B-36 Bruiser destroyed. 01194_ Switching to secondary target: L-31 Rogue. 01194_ Hvy. Assault Rifle destroyed. Map ----- +----------------------------------------------------+ | ??????????????????????????# #???? | | ??????????????????????????# #???? | | ??????????????????????????# #???? | | ??????????????????????????# #???? | | ??????????????????????????# #???? | | ??????????????????????????# #???? | | ??????????????????????????# #???? | | ??????????????????????????# #???? | | ??????????????????????????# #???? | | ??????????????????????????# #???? | | ??????????????????????????# #???? | | ??????????????????????????#/ ! #???? | | ??????????????????????????#!!= #???? | | ??????????????????????????#! % #???? | | ??????????????????????????#%*%=#???? | | ??????????????????????????#= !!#???? | | ??????????????????????????# * #???? | | ??????????????????????????# ! #???? | | ??????????????????????????# #???? | | ????????????????#?????????# #???? | | ????????????????#"????????# #???? | | ?????????????????? ?????## #???? | | ???????????????#####/#####u #???? | | ?????????????### *%==[= #???? | | ?????????? ^% g![%=%l #???? | | ????????????# g !**@ #???? | | ????????????#a #???? | | ????????????# g #???? | | ????????????" """ #???? | | ????????????T """ #???? | | ????????????????""" ###########???? | | ???????????????? ??????????????? | | ??????????????? ???????????????? | | ??????????????? ????????????????? | | ????????????? ![ ?????????????????? | | ?????????????? ![ ?????????????????? | | ?????????????? ??????????????????? | | ???????????????????????????????????? | | ???????????????????????????????????? | | ???????????????????????????????????? | | ???????????????????????????????????? | | ???????????????????????????????????? | | ???????????????????????????????????? | | ???????????????????????????????????? | | ???????????????????????????????????? | | ???????????????????????????????????? | | ???????????????????????????????????? | | ???????????????????????????????????? | | ???????????????????????????????????? | | ???????????????????????????????????? | +----------------------------------------------------+ Best States ------------- Heat Dissipation 28 Energy Generation 14 Energy Capacity 265 Matter Stores 299 Matter Capacity 300 Sight Range 16 Terrain Scan Density 10 Evasion (%) 50 Targeting Accuracy 5 Item Schematics ----------------- None Robot Schematics ------------------ None Fabricated ------------ Nothing Repaired ---------- Nothing Alien Tech Used ----------------- None Achievements -------------- None Challenges ------------ None Game ------ Seed DisintegrationTeslaWand Manual? 0 Play Time 00:12:34 Cumulative 30.3 hours Start 2025.05.18 @ 12:19:02 End 2025.05.18 @ 12:29:51 Sessions 1 Manual Loads 0 Difficulty Rogue Special Mode None Game No. 27 Rogue 21 Adventurer 0 Explorer 6 Win Type - Total 1 Types 1/0/0/0/0/0/0/0/0/0 Lore% 25 Gallery% 41 Achievement% 41 Wizard Run 0 Options --------- Layout 1 ASCII 0 Keyboard 0 Movement Mouse Keybinds 0 Fullscreen 1 Font 36/Smallcaps Map View 50x35 Zoom Use 0% Tactical HUD 1 Map Filters NONE Filters NONE Steam 1 RUN: 76cdf3c7-ad78-4efd-ac83-487f55026c2a